Cogmind - Beta 14 @@@ ROGUE MODE // 2025.03.16 @ 22:45:29 Player: GiggleBox Result: Self-destructed Performance ------------- Evolutions (1) 500 Regions Visited (3) 600 Robots Destroyed (28) 140 Value Destroyed (618) 618 Prototype IDs (0) 0 Alien Tech Used (0) 0 Bonus (0) 0 TOTAL SCORE: 1858 Bonus ------- None Cogmind --------- Core Integrity 400/400 Matter 300/300 Energy 100/100 System Corruption 0% Temperature Cool (0) Movement Treading (160) Location -9/Materials Parts ------- > --- POWER (1) -------- (None) > --- PROPULSION (2) --- Light Treads > --- UTILITY (4) ------ Small Storage Unit Light Armor Plating > --- WEAPON (2) ------- Medium Laser > --- INVENTORY (8) ---- Ion Engine Light Ion Engine Structural Scanner Improved Terrain Scanner EM Pulse Gun Datajack Peak State ------------ > --- POWER ------------ Light Ion Engine > --- PROPULSION ------- Light Treads Light Treads > --- UTILITY ---------- Small Storage Unit Improved Terrain Scanner > --- WEAPON ----------- EM Pulse Gun EM Pulse Gun > --- INVENTORY -------- Light Ion Engine Wheel Wheel Seismic Detector Medium Laser [Rating: 9] Favorites ----------- Power Light Ion Engine Engine Light Ion Engine Propulsion Light Treads Treads Light Treads Wheel Wheel Utility Small Storage Unit Device Improved Terrain Scanner Storage Small Storage Unit Protection Light Armor Plating Weapon EM Pulse Gun Energy Gun EM Pulse Gun Ballistic Cannon Light Cannon Build | -11 -10 -10 -9 ------- Run | Yrd Mat Min Mat Slots Evolved 2 | . . . 2 Power . | . . . . Propulsion . | . . . . Utility 2 | . . . 2 Weapon . | . . . . Parts Attached 22 | 9 11 2 . Power 2 | 1 1 . . Engine 2 | 1 1 . . Core . | . . . . Reactor . | . . . . Propulsion 8 | 2 6 . . Treads 6 | 2 4 . . Leg . | . . . . Wheel 2 | . 2 . . Hover . | . . . . Flight . | . . . . Utility 6 | 4 1 1 . Device 4 | 3 1 . . Storage 1 | 1 . . . Processor . | . . . . Hackware . | . . . . Protection 1 | . . 1 . Artifact . | . . . . Weapon 6 | 2 3 1 . Energy Gun 5 | 2 2 1 . Energy Cannon . | . . . . Ballistic Gun . | . . . . Ballistic Cannon 1 | . 1 . . Launcher . | . . . . Special Weapon . | . . . . Impact Weapon . | . . . . Slashing Weapon . | . . . . Piercing Weapon . | . . . . Special Melee Weapon . | . . . . Unidentified Prototypes . | . . . . Parts Lost 9 | . 5 4 . Power 2 | . 1 1 . Propulsion 2 | . 1 1 . Utility 2 | . 2 . . Weapon 3 | . 1 2 . Highest Loss Streak 4 | . 4 2 . To Critical Strikes . | . . . . Average Slot Usage (%) 86 | . 94 57 44 Engine 12 | . 13 8 . Treads 19 | . 21 14 11 Wheel 4 | . 6 . . Device 7 | . 9 . . Storage 13 | . 14 14 11 Protection 1 | . . 5 11 Energy Gun 18 | . 19 14 11 Ballistic Cannon 6 | . 8 . . Peak Build Rating 9 | 9 8 7 4 Average Rating 6 | 8 6 4 4 On Entrance 4 | . 7 7 4 Naked Turns . | . . . . Heaviest Build 16 | 13 16 12 10 Greatest Support 40 | 40 40 20 20 Greatest Overweight (x) 1 | . 1 . . Average Overweight (x) . | . . . . Largest Inventory Capacity 8 | 8 8 8 8 Average Capacity 7 | 7 8 8 8 Most Carried 8 | 6 8 8 6 Average Carried 5 | 4 5 7 6 Final Capacity 8 | 8 8 8 8 Final Carried 8 | 5 8 6 6 Class Distribution -------------------- 100% | Mutant Dominant Class ---------------- Mutant | -10/Materials Mutant | -10/Mines Mutant | -9/Materials Resources | -11 -10 -10 -9 ----------- Run | Yrd Mat Min Mat Matter Collected 566 | 290 260 16 . Remotely . | . . . . Salvage Created 861 | 112 631 118 . Parts 45 | 6 33 6 . Haulers Intercepted 1 | . 1 . . Recyclers Shooed 2 | . 2 . . Parts Field Recycled . | . . . . Retrieved Matter . | . . . . Parts Self-Destructed . | . . . . Prevented . | . . . . Kills | -11 -10 -10 -9 ------- Run | Yrd Mat Min Mat Combat Hostiles Destroyed 19 | . 14 5 . Guns 10 | . 6 4 . Cannons 7 | . 7 . . AOE 1 | . 1 . . Classes Destroyed 8 | 2 6 . . Worker 1 | . 1 . . Tunneler 2 | 2 . . . Hauler 1 | . 1 . . Recycler 2 | 1 1 . . Operator 2 | . 2 . . Watcher 1 | . 1 . . Swarmer 6 | . 3 3 . Grunt 13 | . 11 2 . Best Kill Streak 4 | 3 4 2 . Combat Bots Only 3 | . 3 2 . Max Kills in Single Turn 2 | 1 2 2 . Gunslinging 1 | . . 1 . Exploded 1 | . 1 . . Melee . | . . . . Uniques/NPCs Destroyed . | . . . . Combat | -11 -10 -10 -9 -------- Run | Yrd Mat Min Mat Hostile Shots Fired 130 | . 92 37 1 Missed 32 | . 26 5 1 Damage Taken 1148 | . 817 331 . Core 238 | . 167 71 . Absorbed by Shields . | . . . . Core Remaining (%) 52 | 100 . 4 . Volleys Fired 97 | 7 68 22 . Largest 2 | 2 2 2 . Hottest 100 | 80 90 100 . Shots Fired 165 | 14 125 26 . Gun 135 | 14 98 23 . Cannon 30 | . 27 3 . Launcher . | . . . . Special . | . . . . Kinetic 30 | . 27 3 . Thermal 85 | . 62 23 . Explosive . | . . . . Electromagnetic 50 | 14 36 . . Robot Hit Streak 9 | 4 9 9 . Robot Miss Streak 4 | 3 4 4 . Penetration Max . | . . . . Secondary Targets 2 | . 1 1 . Max Gunslinging Chain 1 | . 1 1 . Shots Hit Robots 101 | 8 76 17 . Core Hits 43 | 4 32 7 . Critical Kills . | . . . . Critical Parts Destroyed . | . . . . Critical Strikes 11 | 1 6 4 . Burn 10 | . 6 4 . Corrupt 1 | 1 . . . Melee Attacks . | . . . . Impact . | . . . . Slashing . | . . . . Piercing . | . . . . Sneak Attacks . | . . . . Combat Hostiles . | . . . . Follow-up Attacks . | . . . . Damage Inflicted 1534 | 118 1189 227 . Guns 1098 | 118 808 172 . Cannons 361 | . 306 55 . Explosions 75 | . 75 . . Melee . | . . . . Ramming . | . . . . Kinetic 361 | . 306 55 . Thermal 737 | . 565 172 . Explosive . | . . . . Electromagnetic 436 | 118 318 . . Impact . | . . . . Slashing . | . . . . Piercing . | . . . . Highest Corruption . | . . . . Average Corruption . | . . . . Corruption Purged . | . . . . Corruption Blocked . | . . . . Overload Shots . | . . . . Overflow Damage . | . . . . Projectiles . | . . . . Explosions . | . . . . Melee . | . . . . Knockbacks 7 | . 6 1 . Impact . | . . . . Kinetic 5 | . 4 1 . Secondary 2 | . 2 . . Self-Inflicted Damage 28 | . 28 . . Shots 1 | . 1 . . Rammed . | . . . . Targets Rammed . | . . . . Kicked . | . . . . Crushed . | . . . . Highest Temperature 461 | 36 461 240 . Average Temperature 116 | 19 133 78 . Received Heat Transfer 558 | . 450 108 . Effects 9 | . 8 1 . Shutdowns 2 | . 2 . . Energy Bleed 3 | . 3 . . Interference 1 | . . 1 . Matter Decay 1 | . 1 . . Damage (major) 2 | . 2 . . Siege Activations . | . . . . Robots Corrupted . | . . . . Combat Hostiles . | . . . . Parts Fried 1 | 1 . . . Impact Corruptions . | . . . . Robots Melted 2 | . 1 1 . Combat Hostiles 1 | . . 1 . Parts Melted 3 | . 2 1 . Heat Transferred 2801 | . 1987 814 . Parts Sabotaged . | . . . . Parts Stolen . | . . . . Parts Stripped . | . . . . Power Chain Reactions 1 | . 1 . . Alert | -11 -10 -10 -9 ------- Run | Yrd Mat Min Mat Peak Influence 200 | 15 200 173 66 Initial 78 | . . 78 66 Average 52 | 5 64 139 66 Maximum Alert Level 1 | . 1 . . Low Security (%) 98 | 100 97 100 100 Level 1 1 | . 2 . . Level 2 . | . . . . Level 3 . | . . . . Level 4 . | . . . . Level 5 . | . . . . High Security . | . . . . Max Security . | . . . . Squads Dispatched 2 | . 2 . . Investigation 1 | . 1 . . Extermination . | . . . . Reinforcement 1 | . 1 . . Assault . | . . . . Garrison . | . . . . Intercept . | . . . . Searches Triggered . | . . . . Construction Impeded . | . . . . Haulers Reinforced . | . . . . Active Scanning Responses . | . . . . Cargo Convoy Interrupts . | . . . . Stealth | -11 -10 -10 -9 --------- Run | Yrd Mat Min Mat Distress Signals 2 | . 2 . . Communications Jammed . | . . . . Distress Signals . | . . . . Times Spotted 27 | . 20 5 2 Peak Tracking Total 4 | . 4 3 2 Tactical Retreats . | . . . . Traps | -11 -10 -10 -9 ------- Run | Yrd Mat Min Mat Traps Triggered . | . . . . Indirectly . | . . . . Trap Hack Attempts . | . . . . Triggered . | . . . . Disarmed . | . . . . Reprogrammed . | . . . . Reused . | . . . . Traps Extracted . | . . . . Installed . | . . . . Triggered . | . . . . Machines | -11 -10 -10 -9 ---------- Run | Yrd Mat Min Mat Machines Disabled . | . . . . Max in Single Turn . | . . . . Machines Repaired . | . . . . Machines Dismantled . | . . . . Machines Sabotaged . | . . . . Overloaded Fab Kills . | . . . . Hacking | -11 -10 -10 -9 --------- Run | Yrd Mat Min Mat Machines Accessed 9 | . 9 . . Terminals 8 | . 8 . . Fabricators . | . . . . Repair Stations . | . . . . Recycling Units 1 | . 1 . . Scanalyzers . | . . . . Garrison Access . | . . . . Total Hacks 26 | . 26 . . Successful 19 | . 19 . . Failed 7 | . 7 . . Catastrophic . | . . . . Database Lockouts . | . . . . Manual 25 | . 25 . . Terminals 25 | . 25 . . Fabricators . | . . . . Repair Stations . | . . . . Recycling Units 1 | . 1 . . Scanalyzers . | . . . . Garrison Access . | . . . . Terminal Hacks . | . . . . Fabricator Hacks . | . . . . Repair Station Hacks . | . . . . Recycling Unit Hacks 1 | . 1 . . Report Inventory 1 | . 1 . . Scanalyzer . | . . . . Garrison Access Hacks . | . . . . Unauthorized Hacks 18 | . 18 . . Terminals 18 | . 18 . . Track 3 | . 3 . . Botnet 8 | . 8 . . Skim 7 | . 7 . . Fabricators . | . . . . Repair Stations . | . . . . Recycling Units . | . . . . Scanalyzers . | . . . . Garrison Access . | . . . . Data Cores Recovered . | . . . . Used . | . . . . Hacking Detections 7 | . 7 . . Full Trace Events 4 | . 4 . . Feedback Events . | . . . . Feedback Blocked . | . . . . Robot Schematics Acquired . | . . . . Robots Built . | . . . . Authchips . | . . . . Time . | . . . . Total Robot Build Rating . | . . . . Part Schematics Acquired . | . . . . Parts Built . | . . . . Authchips . | . . . . Time . | . . . . Total Part Build Rating . | . . . . Parts Repaired . | . . . . Time . | . . . . Parts Recycled . | . . . . Recycled Matter . | . . . . Retrieved Matter . | . . . . Retrieved Components . | . . . . Parts Scanalyzed . | . . . . Part Schematics Acquired . | . . . . Parts Damaged . | . . . . Bothacking | -11 -10 -10 -9 ------------ Run | Yrd Mat Min Mat Used RIF Installer . | . . . . Robots Hacked . | . . . . Non-combat . | . . . . Combat . | . . . . Robot Hacks Applied . | . . . . Relay Couplers Released . | . . . . Fabnet Peak Effective % . | . . . . Robots Rewired . | . . . . Allies Hacked . | . . . . Hacks Repelled . | . . . . Allies | -11 -10 -10 -9 -------- Run | Yrd Mat Min Mat Total Allies . | . . . . Largest Group . | . . . . Highest-Rated Group . | . . . . Highest-Rated Ally . | . . . . Total Orders . | . . . . Ally Attacks . | . . . . Total Damage . | . . . . Kills . | . . . . Allies Corrupted . | . . . . Allies Melted . | . . . . Intel | -11 -10 -10 -9 ------- Run | Yrd Mat Min Mat Robot Analysis Total . | . . . . Derelict Logs Recovered . | . . . . Drone Launches . | . . . . Drone Recoveries . | . . . . Exploration | -11 -10 -10 -9 ------------- Run | Yrd Mat Min Mat Turns Passed 2227 | 833 1076 294 24 Spaces Moved 927 | 148 613 153 13 Core 18 | 18 . . . Treads 737 | 130 441 153 13 Legs . | . . . . Wheels 172 | . 172 . . Hover . | . . . . Flight . | . . . . Fastest Speed 50 | 50 80 160 160 Average Speed 143 | 146 137 160 160 Slowest Speed 160 | 160 160 160 160 Overloaded Moves . | . . . . Propulsion Burnouts . | . . . . Robots Hopped . | . . . . Cave-ins Triggered . | . . . . Exploration Rate (%) 29 | 6 75 34 3 Regions Visited 3 Branch Regions 1 Pre-discovered Areas . | . . . . Known Exits Taken . | . . . . Unknown Exits Taken 3 | 1 1 1 . Scrap Searched . | . . . . Spaces Dug . | . . . . Terrain Destroyed 3 | . 3 . . Melee . | . . . . Projectile . | . . . . AOE 3 | . 3 . . Terrain Rammed . | . . . . Walls Destroyed . | . . . . Machines Disabled . | . . . . Actions | -11 -10 -10 -9 --------- Run | Yrd Mat Min Mat Total 1659 | 748 719 176 16 Wait 594 | 575 16 . 3 Move 924 | 147 612 152 13 Hop . | . . . . Pick Up 19 | 10 9 . . Fast Attach 2 | 2 . . . Attach 12 | 5 5 2 . Detach 1 | . 1 . . Swap 8 | 2 6 . . Drop 2 | . 2 . . Fire 97 | 7 68 22 . Melee . | . . . . Ram . | . . . . Kick . | . . . . Crush . | . . . . Escape Stasis . | . . . . Rewire . | . . . . Trap . | . . . . Miscellaneous . | . . . . Route ------- -11/Scrapyard -10/Materials (discovered 4 exits: [*Mat x3] / [*Min]) -10/Mines -9/Materials History --------- Turn | Location | Event 5 | -11/Scrapyard | Discovered new exit (range 16) 834 | -11/Scrapyard | Entered Materials 835 | -10/Materials | Build established: Mutant 1159 | -10/Materials | Lost 4 parts (1p1n1u1w) 1179 | -10/Materials | Discovered new exit (range 15) 1425 | -10/Materials | Core integrity fell below 50% 1590 | -10/Materials | Discovered new exit (range 5) 1735 | -10/Materials | Discovered new exit (range 9) 1765 | -10/Materials | Discovered new exit (range 15) 1910 | -10/Materials | Entered Mines 1919 | -10/Mines | Core integrity fell below 20% 2088 | -10/Mines | Discovered new exit (range 9) 2204 | -10/Mines | Entered Materials 2204 | -9/Materials | Evolved 2 slots: Utility x2 2228 | -9/Materials | Self-destructed Last Messages --------------- 01932_ Overheating: System interference. 01932_ Med. Laser temporarily disabled. 01935_ Acquired 2 matter. 02083_ Ion Engine destroyed. 02084_ S-10 Pest destroyed. 02084_ Switching to secondary target: S-10 Pest. 02084_ S-10 Pest destroyed. 02087_ Acquired 14 matter. 02087_ Med. Laser destroyed. 02088_ EXIT=FOUND 02098_ S-10 Pest suffers critical hit (Burn). 02110_ Flight Unit melted. 02110_ S-10 Pest destroyed. 02110_ R-06 Scavenger collects Lgt. Ion Engine. 02115_ R-06 Scavenger collects Lgt. Assault Rifle. 02116_ R-06 Scavenger suffers critical hit (Burn). [Achievement: Close Call] PARAMETERS=UTILITY+2 LOCATION=UNKNOWN GOAL=ESCAPE Map ----- +----------------------------------------------------+ | ?????????????????????????????????????? | | ?????????????????????????????????????? | | ?????????????????????????????????????? | | ?????????????????????????????????????? | | ?????????????????????????????????????? | | ?????????????????????????????????????? | | ?????????????????????????????????????? | | ?????????????????????????????????????? | | ?????????????????????????????????????? | | ?????????????????????????????????????? | | ?????????????????????????????????????? | | ?????????????????????????????????????? | | ?????????????????????????????????????? | | ?????????????????????????????????????? | | ?????????????????????????????######??? | | ?????????????????????????????# #??? | | ?????????????????????????????# #??? | | ?????????????????????????????# #??? | | ?????????????????????????????# #??? | | ?????????????????????????????# #??? | | ?????????????????????????????# #??? | | ?????????????????????????????# #??? | | ??????????????????????######## #??? | | ??????????????????????# # #??? | | ??????????????????????# # #??? | | ??????????????????????# @ gg #??? | | ??????????????????????# # #??? | | ??????????????????????# # #??? | | ??????????????????????# # #??? | | ??????????????????????######## #??? | | ?????????????????????????????# #??? | | ?????????????????????????????# #??? | | ?????????????????????????????# #??? | | ?????????????????????????????? #??? | | ?????????????????????????????? #??? | | ?????????????????????????????? #??? | | ?????????????????????????????? #??? | | ?????????????????????????????? #??? | | ??????????????????????????????" "??? | | ??????????????????????????????? ????? | | ?????????????????????????????????????? | | ?????????????????????????????????????? | | ?????????????????????????????????????? | | ?????????????????????????????????????? | | ?????????????????????????????????????? | | ?????????????????????????????????????? | | ?????????????????????????????????????? | | ?????????????????????????????????????? | | ?????????????????????????????????????? | | ?????????????????????????????????????? | +----------------------------------------------------+ Best States ------------- Heat Dissipation 28 Energy Generation 10 Energy Capacity 250 Matter Stores 300 Matter Capacity 300 Sight Range 16 Robot Scan Range 14 Terrain Scan Range 16 Terrain Scan Density 10 Armor Coverage 150 Evasion (%) 50 Recoil Reduction 2 Item Schematics ----------------- None Robot Schematics ------------------ None Fabricated ------------ Nothing Alien Tech Used ----------------- None Achievements -------------- Close Call Challenges ------------ None Game ------ Seed SlugBarrageRipteeth Manual? 0 Play Time 00:14:30 Cumulative 17.0 hours Start 2025.03.16 @ 22:30:21 End 2025.03.16 @ 22:45:29 Sessions 1 Manual Loads 0 Difficulty Rogue Special Mode None Game No. 24 Rogue 24 Adventurer 0 Explorer 0 Win Type - Total 0 Types 0/0/0/0/0/0/0/0/0 Lore% 5 Gallery% 22 Achievement% 19 Wizard Run 0 Options --------- Layout 0 ASCII 0 Keyboard 0 Movement Numpad Keybinds 0 Fullscreen 1 Font 24/Smallcaps Map View 76x50 Zoom Use 0% Tactical HUD 1 Map Filters NONE Filters NONE Steam 1 RUN: cb19caa0-54db-491c-ba68-c2ec216ff513